fUSD/lending_fUSD_20240115
["ID","MTS","AMOUNT","RATE_DAILY","PERIOD"]
[311651980,1705282242785,-766.79800754,0.000271,2]
[311651983,1705282242796,-1449.54671138,0.000271,2]
[311651986,1705282242808,-257.77382234,0.000271,2]
[311651990,1705282242820,-696.05985471,0.000271,2]
[311651997,1705282242847,-2996.95316713,0.000271,2]
[311652000,1705282242858,-1515.01903168,0.000271,2]
[311652126,1705282243957,-1186.12078816,0.000271,2]
[311652132,1705282243997,-15120.83321164,0.000271,2]
[311652134,1705282244008,-1607.51,0.000271,2]
[311652136,1705282244019,-262.744,0.00027139,2]
[311652138,1705282244028,-5731.48566342,0.00027139,2]
[311652140,1705282244040,-524.28678313,0.00027139,2]
[311652142,1705282244081,-676.29944352,0.00027139,2]
[311652296,1705282245900,-1944.58436963,0.00024998,2]
[311652298,1705282245910,-13440.36063037,0.00027139,2]
[311652309,1705282246017,-610.9022079,0.00027139,2]
[311652320,1705282246112,-929.92320013,0.00027139,2]
[311652323,1705282246124,-388.95084273,0.00027139,2]
[311652325,1705282246136,-3214.0000025,0.00027139,2]
[311652327,1705282246147,-1912.08511341,0.00027139,2]
[311652331,1705282246180,-325.51034496,0.00027139,2]
[311652334,1705282246192,-1992.01801662,0.00027139,2]
[311652336,1705282246209,-682.20272657,0.00027139,2]
[311652349,1705282487345,354.0658211,0.0003,90]
[311652370,1705283432092,-258.61319956,0.00022792,2]
[311652371,1705283432101,-361.2373,0.00022793,2]
[311652372,1705283432110,-150.0,0.00023,2]
[311652373,1705283432120,-431.27928573,0.00024334,2]
[311652374,1705283432130,-183.4826822,0.00024335,2]
[311652375,1705283432140,-150.0,0.00024426,2]
[311652376,1705283432149,-5688.65275357,0.00024427,2]
[311652377,1705283432161,-250.19404164,0.00024427,2]
[311652378,1705283432206,-15385.65320479,0.00024427,2]
[311652379,1705283432215,-250.0,0.00024434,2]
[311652380,1705283432225,-388.12,0.00024466,2]
[311652381,1705283432235,-413.22,0.0002447,2]
[311652382,1705283432244,-346.01,0.00024588,2]
[311652383,1705283432253,-3751.52,0.00024588,2]
[311652384,1705283432263,-250.0,0.00024658,2]
[311652386,1705283432273,-150.0,0.00024658,2]
[311652387,1705283432282,-499.99,0.00024714,2]
[311652389,1705283432292,-200.0,0.00024763,2]
[311652391,1705283432301,-857.42,0.00024821,2]
[311652393,1705283432310,-167.4,0.00024894,2]
[311652395,1705283432319,-9680.78,0.00024894,2]
[311652396,1705283432328,-201.90785395,0.00025164,2]
[311652398,1705283432339,-303.27668532,0.00025165,2]
[311652400,1705283432347,-163.66,0.00025357,2]
[311652402,1705283432356,-1911.41319397,0.00025383,2]
[311652403,1705283432366,-346.01,0.00025566,2]
[311652405,1705283432375,-2656.69504921,0.00025583,3]
[311652408,1705283432461,-1021.05941558,0.00025583,3]
[311652409,1705283432473,-133.26002525,0.00025583,3]
[311652410,1705283432483,-220.87535829,0.00025583,3]
[311652411,1705283432493,-1000.0,0.00025583,3]
[311652412,1705283432502,-187.2477345,0.00025583,3]
[311652413,1705283432511,-336.53665675,0.00025583,3]
[311652414,1705283432521,-1000.0,0.00025583,3]
[311652415,1705283432530,-192.79250549,0.00025583,3]
[311652416,1705283432540,-1000.0,0.00025583,3]
[311652417,1705283432550,-585.13981467,0.00025583,3]
[311652418,1705283432559,-1000.0,0.00025583,3]
[311652419,1705283432569,-4216.43171095,0.00025583,3]
[311652420,1705283432578,-1530.2920995,0.00025583,3]
[311652421,1705283432588,-1000.0,0.00025583,3]
[311652422,1705283432598,-160.83064532,0.00025583,2]
[311652423,1705283432607,-167.4,0.00025723,2]
[311652424,1705283432617,-4369.4129,0.00025728,2]
[311652425,1705283432627,-158.63736634,0.00025826,2]
[311652426,1705283432637,-350.46600965,0.00025826,2]
[311652427,1705283432646,-200.91002189,0.00025827,2]
[311652428,1705283432656,-867.66859615,0.00025828,2]
[311652429,1705283432885,-414.58683864,0.00025828,2]
[311652430,1705283432905,-959.17,0.00025828,2]
[311652431,1705283432917,-1824.22785908,0.00025828,2]
[311652434,1705283437955,-323.56,0.00022521,2]
[311652435,1705283437965,-323.56,0.00024785,2]
[311652436,1705283437974,-361.31163591,0.00025828,2]
[311652437,1705283438016,-725.84431966,0.00025828,2]
[311652438,1705283438197,-12282.80695017,0.00025828,2]
[311652439,1705283438210,-70756.59027492,0.00025828,2]
[311652440,1705283438220,-1399.00353667,0.00025828,2]
[311652441,1705283438229,-385.38879561,0.00025829,2]
[311652442,1705283438238,-714.39,0.0002583,2]
[311652443,1705283438248,-1000.0,0.00026079,2]
[311652444,1705283438258,-45330.49542692,0.000261,2]
[311652445,1705283438269,-1982.04734951,0.000261,2]
[311652446,1705283438289,-1695.7537696,0.000261,2]
[311652447,1705283438317,-226.70345397,0.000261,2]
[311652448,1705283438326,-188.1792969,0.000261,2]
[311652640,1705283440474,-396.26078023,0.000261,2]
[311652646,1705283440526,-3374.55992287,0.000261,2]
[311652649,1705283440536,-1363.918,0.00026363,2]
[311652650,1705283440546,-2237.934,0.00026363,2]
[311652652,1705283440555,-1249.409,0.00026363,2]
[311652654,1705283440564,-315.49913105,0.00026363,2]
[311652662,1705283440632,-395.61086895,0.00026363,2]
[311652664,1705283440641,-515.5,0.00026363,2]
[311652666,1705283440651,-426.0,0.00026363,2]
[311652668,1705283440661,-880.15896575,0.00026363,2]
[311652670,1705283440676,-432.62450016,0.00026363,2]
[311652673,1705283440688,-630.30553409,0.00026363,2]
[311652675,1705283440697,-165.678,0.00026363,2]
[311652677,1705283440707,-399.11677836,0.00026363,2]
[311652913,1705283442906,-479.59122164,0.00026363,2]
[311652915,1705283442916,-236.655,0.00026363,2]
[311652917,1705283442926,-372.563,0.00026363,2]
[311652919,1705283442935,-250.0,0.00026363,2]
[311652921,1705283442946,-1359.869,0.00026363,2]
[311652923,1705283442955,-1351.33983444,0.00026363,2]
[311652926,1705283442966,-1707.12749173,0.00026363,2]
[311652930,1705283442997,-1113.53267383,0.00026363,2]
[311652932,1705283443007,-2275.176,0.00026363,2]
[311652934,1705283443016,-2918.002,0.00026363,2]
[311652936,1705283443025,-157.0,0.00026363,2]
[311652938,1705283443035,-209.266,0.00026363,2]
[311652940,1705283443044,-19692.0,0.00026363,2]
[311652942,1705283443053,-197.0,0.00026363,2]
[311652944,1705283443062,-8270.93223211,0.00026363,2]
[311652946,1705283443074,-570.04311478,0.00026363,2]
[311652948,1705283443085,-2959.48665311,0.00026363,2]
[311652950,1705283443095,-176.0,0.00026363,2]
[311652952,1705283443104,-236.626,0.00026363,2]
[311652954,1705283443113,-152.67,0.00026363,2]
[311652956,1705283443123,-1034.476,0.00026363,2]
[311652958,1705283443133,-195.929,0.00026363,2]
[311652961,1705283443143,-201.957,0.00026363,2]
[311652962,1705283443152,-180.068,0.00026363,2]
[311652965,1705283443161,-150.0,0.00026387,2]
[311652967,1705283443171,-346.01,0.00026545,2]
[311652969,1705283443181,-167.4,0.00026553,2]
[311652971,1705283443192,-4919.25495607,0.00026575,2]
[311652973,1705283443205,-5075.42504393,0.00026575,2]
[311652975,1705283443214,-913.99,0.00026575,2]
[311652977,1705283443224,-150.0,0.00026849,2]
[311652979,1705283443233,-210.0,0.00026868,2]
[311652981,1705283443242,-151.40115,0.00027048,2]
[311652983,1705283443252,-151.40115,0.00027048,2]
[311652985,1705283443270,-151.40115,0.00027048,2]
[311652987,1705283443296,-151.40115,0.00027048,2]
[311652988,1705283443306,-151.40115,0.00027048,2]
[311652991,1705283443316,-151.40115,0.00027048,2]
[311652993,1705283443325,-151.40115,0.00027048,2]
[311652994,1705283443334,-228.40115,0.00027048,2]
[311652996,1705283443343,-323.56,0.00027048,2]
[311652999,1705283443353,-276.0,0.00027058,2]
[311653001,1705283443363,-170.23,0.000271,2]
[311653004,1705283443372,-150.0,0.00027111,2]
[311653007,1705283443382,-155.56631418,0.00027137,2]
[311653010,1705283443391,-355.47177709,0.00027137,2]
[311653013,1705283443400,-157.70381582,0.00027137,2]
[311653016,1705283443409,-176.21126888,0.00027137,2]
[311653019,1705283443418,-26760.47270867,0.00027137,2]
[311653023,1705283443443,-510.38064613,0.00027137,2]
[311653028,1705283443463,-353.659,0.00027137,2]
[311653031,1705283443475,-2063.75470879,0.00027137,2]
[311653039,1705283443511,-5043.95004762,0.00027137,2]
[311653041,1705283443523,-1044.79453983,0.00027137,2]
[311653044,1705283443535,-614.05362647,0.00027137,2]
[311653046,1705283443545,-2603.90455368,0.00027138,2]
[311653048,1705283443554,-277.75930124,0.00027139,2]
[311653050,1705283443563,-3108.61015867,0.000273,2]
[311653291,1705283445931,-400.97271712,0.000273,2]
[311653297,1705283446105,-431.97030772,0.00027299,2]
[311653298,1705283446114,-689.0963591,0.000273,2]
[311653299,1705283446124,-229.78599928,0.000273,2]
[311653300,1705283446138,-3968.89323553,0.000273,2]
[311653301,1705283446147,-4198.67923481,0.000273,2]
[311653302,1705283446157,-4198.67923481,0.000273,2]
[311653303,1705283446166,-4198.67923481,0.000273,2]
[311653304,1705283446176,-4198.67923481,0.000273,2]
[311653305,1705283446186,-4198.67923481,0.000273,2]
[311653306,1705283446196,-1127.70660733,0.000273,2]
[311653309,1705283446340,-360.8545052,0.000273,2]
[311653311,1705283513718,3888.05725269,0.00021,4]
[311653312,1705283550064,259.7143202,0.00021,2]
[311653313,1705283565205,259.7143202,0.00021,2]
[311653314,1705283589374,384.94551314,0.00021,2]
[311653315,1705283611948,856.54723122,0.00021,2]
[311653316,1705283631945,699.0670374,0.00021,2]
[311653322,1705283903680,175.38,0.00019518,2]
[311653323,1705283949020,250.0,0.00025,15]
[311653324,1705283951901,150.85586616,0.00022,2]
[311653326,1705283994561,431.19,0.00021975,2]
[311653328,1705284040871,250.57589445,0.00026,27]
[311653330,1705284439411,-258.61319956,0.00022295,2]
[311653331,1705284439432,-181.34199322,0.00022296,2]
[311653332,1705284500065,409.63,0.00020312,2]
[311653337,1705284591972,330.08,0.00022183,2]
[311653339,1705284602486,401.32,0.00022115,2]
[311653340,1705284607319,330.83,0.00022115,2]
[311653347,1705284632389,-2845.89951319,0.00022294,2]
[311653348,1705284632427,-481.55954861,0.00022294,2]
[311653349,1705284632437,-258.61319956,0.00022295,2]
[311653350,1705284632446,-183.0,0.00022296,2]
[311653351,1705284632456,-167.21742876,0.00022298,2]
[311653352,1705284632466,-164.32,0.00022399,2]
[311653353,1705284632477,-163.66,0.00022452,2]
[311653355,1705284632486,-150.0,0.00022499,2]
[311653357,1705284632497,-4084.05109266,0.000225,2]
[311653359,1705284632507,-2000.0,0.00022519,2]
[311653361,1705284632517,-164.32,0.00022566,2]
[311653363,1705284632527,-409.63,0.00022576,2]
[311653365,1705284632536,-1160.95,0.00022617,2]
[311653367,1705284632546,-250.0,0.00022692,2]
[311653369,1705284632556,-12283.48,0.00022692,2]
[311653371,1705284632565,-164.32,0.00022732,2]
[311653373,1705284632574,-184.99818197,0.00022781,2]
[311653375,1705284632583,-285.95489832,0.00022782,2]
[311653490,1705284638147,-2628.40293974,0.00022782,2]
[311653491,1705284638159,-843.85681644,0.00022782,2]
[311653492,1705284638171,-20141.7853455,0.00022782,2]
[311653493,1705284638180,-440.58307125,0.0002287,2]
[311653494,1705284638190,-5988.88,0.00022872,2]
[311653495,1705284638200,-4392.0069,0.0002288,2]
[311653496,1705284638209,-2994.1845,0.0002288,2]
[311653497,1705284638218,-164.32,0.00022899,2]
[311653498,1705284638227,-959.17,0.00022979,2]
[311653499,1705284638237,-49599.07018325,0.0002298,2]
[311653500,1705284638260,-5921.34024245,0.0002298,2]
[311653501,1705284638370,-2888.88628797,0.0002298,2]
[311653502,1705284638382,-408.52198689,0.0002298,2]
[311653515,1705284638609,-377.44548477,0.0002298,2]
[311653731,1705284640699,-1216.49286321,0.0002298,2]
[311653800,1705284641371,-338.88377726,0.0002298,2]
[311653839,1705284641739,-353.65999998,0.0002298,2]
[311653977,1705284643088,-442.73155593,0.0002298,2]
[311653979,1705284643100,-295.94140763,0.0002298,2]
[311653981,1705284643111,-271.83505795,0.0002298,2]
[311653983,1705284643125,-1371.19618759,0.0002298,2]
[311653986,1705284643136,-1094.71641432,0.0002298,2]
[311653988,1705284643147,-401.24529121,0.0002298,2]
[311653995,1705284643201,-3174.88630689,0.0002298,2]
[311653997,1705284643212,-12408.16823801,0.0002298,2]
[311653999,1705284643224,-3097.28845834,0.0002298,2]
[311654001,1705284643235,-347.18442988,0.0002298,2]
[311654005,1705284643259,-1101.317464,0.0002298,2]
[311654012,1705284643320,-327.58099024,0.0002298,2]
[311654014,1705284643332,-554.00000005,0.0002298,2]
[311654016,1705284643343,-4882.95844277,0.0002298,2]
[311654018,1705284643355,-2337.46069765,0.0002298,2]
[311654030,1705284643454,-556.75828576,0.0002298,2]
[311654281,1705284647054,-258.61319956,0.00022979,2]
[311654282,1705284647063,-8571.1406801,0.0002298,2]
[311654283,1705284647075,-994.55659917,0.0002298,2]
[311654284,1705284647165,-6066.47470196,0.0002298,2]
[311654285,1705284659569,533.80494766,0.00022115,2]
[311654286,1705284745546,10358.81,0.00022191,2]
[311654287,1705284753981,2000.0,0.00022191,2]
[311654288,1705284962033,853.43,0.00022017,2]
[311654289,1705284974619,396.85,0.00020084,2]
[311654290,1705284998877,200.0,0.00022017,2]
[311654291,1705285045963,208.98602504,0.00022002,2]
[311654292,1705285045993,291.01397496,0.00022002,2]
[311654293,1705285057657,200.02,0.00022002,2]
[311654294,1705285061897,1120.38502927,0.00020379,2]
[311654295,1705285079158,156.37,0.00022002,2]
[311654296,1705285088521,2705.0,0.00021945,2]
[311654297,1705285105557,577.9,0.00021945,2]
[311654298,1705285119843,150.5,0.00021959,2]
[311654299,1705285128633,500.0,0.00021974,2]
[311654300,1705285150218,478.49,0.00021953,2]
[311654301,1705285152690,4043.69,0.00021928,2]
[311654302,1705285173925,7397.76,0.00021923,2]
[311654303,1705285198334,250.0,0.00021923,2]
[311654304,1705285219190,2000.0,0.00021941,2]
[311654305,1705285230646,165.67,0.00021923,2]
[311654306,1705285261830,1385.97673174,0.0002167,2]
[311654307,1705285262253,1277.44137103,0.00021657,2]
[311654308,1705285262285,1385.97673174,0.00022095,2]
[311654309,1705285262650,1277.44137103,0.00021986,2]
[311654310,1705285377955,258.61319956,0.00022099,2]
[311654311,1705285379182,621.70656689,0.00022099,2]
[311654312,1705285393184,621.62764564,0.00021982,2]
[311654313,1705285435554,200.0,0.00021898,2]
[311654315,1705285490024,377.0,0.00019945,2]
[311654316,1705285507622,1283.71492055,0.00022076,2]
[311654321,1705285568247,500.0,0.00021818,2]
[311654324,1705285620362,446.59,0.0002181,2]
[311654326,1705285650120,-413.22667803,0.00022104,2]
[311654328,1705285653997,164.32,0.00021981,2]
[311654329,1705285669037,306.47,0.00021812,2]
[311654330,1705285670329,288.95,0.00021826,2]
[311654332,1705285689130,879.6,0.00021812,2]
[311654339,1705285832412,-707.25968361,0.00022115,2]
[311654340,1705285832473,-280.24516117,0.00022115,2]
[311654341,1705285832485,-889.30813036,0.00022115,2]
[311654342,1705285832497,-610.5,0.00022115,2]
[311654385,1705285838393,-701.63722126,0.00022115,2]
[311654386,1705285838403,-0.36277874,0.00022116,2]
[311654387,1705285838441,-258.25042082,0.00022116,2]
[311654388,1705285838451,-159.34,0.00022117,2]
[311654389,1705285838461,-1423.47673175,0.00022194,2]
[311654390,1705285838471,-156.37,0.00022202,2]
[311654391,1705285838480,-377.0,0.00022208,2]
[311654392,1705285838489,-1283.71492055,0.00022223,2]
[311654393,1705285838499,-163.82312807,0.00022248,2]
[311654394,1705285838508,-164.32,0.00022363,2]
[311654395,1705285838518,-156.37,0.00022402,2]
[311654396,1705285838527,-3696.45,0.0002249,2]
[311654397,1705285838537,-3473.38,0.0002249,2]
[311654398,1705285838547,-159.34,0.00022534,2]
[311654399,1705285838556,-1283.71492055,0.00022566,2]
[311654400,1705285838565,-156.37,0.00022602,2]
[311654401,1705285838574,-150.90235575,0.0002263,2]
[311654402,1705285838583,-1423.47673175,0.00022655,2]
[311654403,1705285838593,-164.32,0.00022745,2]
[311654404,1705285838602,-446.59,0.00022789,2]
[311654405,1705285838611,-156.37,0.00022802,2]
[311654406,1705285838621,-163.82312797,0.00022814,2]
[311654407,1705285838630,-2454.96778219,0.00022878,2]
[311654408,1705285838640,-6374.72875431,0.00022879,2]
[311654409,1705285838652,-848.26710872,0.00022879,2]
[311654410,1705285838672,-448.99780778,0.00022879,2]
[311654411,1705285838681,-1178.79264144,0.0002288,2]
[311654412,1705285838693,-435.63325856,0.0002288,2]
[311654413,1705285838703,-499.99,0.0002288,2]
[311654414,1705285838713,-180.751,0.0002288,2]
[311654415,1705285838722,-204.87192104,0.0002289,2]
[311654416,1705285838731,-143.73571713,0.00022895,2]
[311654417,1705285838747,-61.13620388,0.00022895,2]
[311654418,1705285838756,-198.43237788,0.00022898,2]
[311654419,1705285838766,-280.09537574,0.00022898,2]
[311654420,1705285838775,-215.07361682,0.00022899,2]
[311654421,1705285838785,-1603.62309773,0.000229,2]
[311654428,1705285839195,-16.46112276,0.000229,2]
[311654431,1705285839215,-264.76461014,0.000229,2]
[311654433,1705285839226,-626.52455105,0.000229,2]
[311654593,1705285840775,-356.99633322,0.000229,2]
[311654606,1705285840892,-542.68,0.000229,2]
[311654608,1705285840903,-758.28,0.000229,2]
[311654617,1705285840975,-4224.71522178,0.000229,2]
[311654619,1705285840986,-1355.399915,0.000229,2]
[311654621,1705285840997,-675.21345931,0.000229,2]
[311654623,1705285841008,-2049.10889,0.000229,2]
[311654626,1705285841020,-3644.64393079,0.000229,2]
[311654673,1705285841607,-614.70870623,0.000229,2]
[311654900,1705285843954,-588.88895051,0.00022148,2]
[311654920,1705285844126,-937.480368,0.00022148,2]
[311654922,1705285844138,-739.54658149,0.00022148,2]
[311654924,1705285844148,-820.45341851,0.000229,2]
[311654929,1705285844185,-3162.91859852,0.000229,2]
[311654931,1705285844197,-1041.59853983,0.000229,2]
[311654934,1705285844208,-429.3413207,0.000229,2]
[311655183,1705285847089,-1500.0,0.000229,2]
[311655185,1705285847104,-2285.54984427,0.000229,2]
[311655189,1705285847132,-633.709995,0.000229,2]
[311655191,1705285847143,-862.563003,0.000229,2]
[311655194,1705285847154,-746.89100001,0.000229,2]
[311655197,1705285847173,-2329.17685,0.000229,2]
[311655483,1705285856887,3188.9501964,0.00022058,2]
[311655484,1705285880895,609.13306683,0.00022058,2]
[311655485,1705285958596,368.09,0.00020117,2]
[311655486,1705286006672,500.0,0.00022004,2]
[311655487,1705286077948,156.66,0.00021985,2]
[311655488,1705286104925,444.76,0.00021985,2]
[311655489,1705286109933,274.59,0.00021977,2]
[311655490,1705286127502,296.32,0.00021977,2]
[311655491,1705286194425,163.82312797,0.00022081,2]
[311655492,1705286262548,6073.94,0.00021974,2]
[311655493,1705286278836,167.18,0.00021974,2]
[311655494,1705286404343,349.68,0.00020024,2]
[311655495,1705286537229,167.4,0.00021906,2]
[311655496,1705286567255,415.1,0.00021907,2]
[311655497,1705286572300,762.94,0.00021892,2]
[311655498,1705286573089,1129.92,0.00022067,2]
[311655499,1705286581281,274.59,0.00021916,2]
[311655500,1705286648755,164.32,0.00022088,2]
[311655501,1705286830103,-258.61319956,0.00022155,2]
[311655502,1705286830126,-163.82312797,0.00022156,2]
[311655503,1705286830145,-342.11507395,0.00022255,2]
[311655504,1705286839169,165.67,0.00021894,2]
[311655505,1705286886125,332.19,0.00019982,2]
[311655514,1705287031541,-258.61319956,0.00022194,2]
[311655515,1705287031551,-125.10987012,0.00022195,2]
[311655516,1705287031563,-765.0228798,0.00022195,2]
[311655517,1705287031574,-318.3432,0.00022195,2]
[311655518,1705287031747,-935.95780826,0.00022195,2]
[311655519,1705287031757,-970.1239621,0.00022196,2]
[311655520,1705287031768,-315.2812933,0.00022196,2]
[311655521,1705287031779,-105.91297372,0.00022196,2]
[311655522,1705287031789,-755.39015404,0.00022241,2]
[311655523,1705287031809,-4519.53102803,0.00022241,2]
[311655524,1705287031818,-468.5269346,0.00022243,2]
[311655525,1705287031827,-332.19,0.00022246,2]
[311655526,1705287031837,-5663.557854,0.00022256,2]
[311655527,1705287031846,-1242.07965323,0.00022263,2]
[311655528,1705287031855,-150.0,0.00022274,2]
[311655529,1705287031865,-156.68,0.00022299,2]
[311655530,1705287031874,-652.28797083,0.00022468,2]
[311655531,1705287031886,-549.35079271,0.00022468,2]
[311655532,1705287031906,-189.67946558,0.00022468,2]
[311655533,1705287031915,-135.16122451,0.00022506,2]
[311655534,1705287031927,-364.82877549,0.00022506,2]
[311655535,1705287031938,-35.17122451,0.0002261,2]
[311655536,1705287031951,-1206.90842872,0.0002261,2]
[311655537,1705287031960,-852.69,0.00022669,2]
[311655538,1705287031971,-150.0,0.00022715,2]
[311655539,1705287031980,-150.0,0.00022723,2]
[311655540,1705287031989,-236.07844157,0.00022749,2]
[311655541,1705287031999,-150.0,0.0002277,2]
[311655542,1705287032008,-150.0,0.00022772,2]
[311655543,1705287032017,-150.0,0.00022792,2]
[311655544,1705287032026,-156.68,0.00022823,2]
[311655545,1705287032036,-300.0,0.00022858,2]
[311655546,1705287032045,-13203.35550497,0.0002287,2]
[311655547,1705287032054,-163.82312797,0.00022877,2]
[311655548,1705287032063,-44601.3511,0.00022878,2]
[311655549,1705287032072,-16377.15826605,0.00022879,2]
[311655550,1705287032082,-3209.202,0.0002288,2]
[311655551,1705287032091,-655.66385193,0.0002288,2]
[311655552,1705287032102,-6691.35104807,0.0002288,2]
[311655553,1705287032111,-95.3551555,0.0002288,2]
[311655555,1705287037581,-1304.9623445,0.0002288,2]
[311655556,1705287037591,-7252.4148,0.0002288,2]
[311655557,1705287037600,-2089.09385435,0.0002288,2]
[311655558,1705287037610,-415.1,0.00022886,2]
[311655559,1705287037620,-150.0,0.00022896,2]
[311655560,1705287037630,-338.63492376,0.00022899,2]
[311655561,1705287037639,-1434.12759215,0.000229,2]
[311655562,1705287037647,-150.0,0.00022911,2]
[311655563,1705287037657,-150.0,0.00022945,2]
[311655564,1705287037668,-159.34,0.0002295,2]
[311655565,1705287037678,-157.23147755,0.00022976,2]
[311655566,1705287037687,-158.03151054,0.00022976,2]
[311655567,1705287037696,-155.54361443,0.00022977,2]
[311655568,1705287037706,-332.35687319,0.00022977,2]
[311655569,1705287037716,-1221.36306366,0.00022977,2]
[311655570,1705287037726,-911.19800671,0.00022977,2]
[311655571,1705287037735,-2732.36540961,0.00022977,2]
[311655572,1705287037744,-549.32147895,0.00022977,2]
[311655573,1705287037754,-150.0,0.00022977,2]
[311655574,1705287037763,-4670.92093401,0.00022978,2]
[311655575,1705287037773,-447.79961624,0.00022978,2]
[311655576,1705287037782,-185.51024071,0.00022978,2]
[311655577,1705287037792,-504.49982852,0.00022978,2]
[311655578,1705287037801,-830.83662589,0.00022979,2]
[311655579,1705287037811,-209.36776786,0.00022979,2]
[311655580,1705287037820,-319.60752767,0.00022979,2]
[311655581,1705287037829,-2492.918503,0.00022979,2]
[311655583,1705287037838,-431.26195182,0.00022979,2]
[311655585,1705287037847,-252.80387568,0.00022979,2]
[311655587,1705287037857,-64881.3881792,0.0002298,2]
[311655592,1705287037889,-1449.17168372,0.0002298,2]
[311655594,1705287037901,-36321.61748294,0.0002298,2]
[311655596,1705287037912,-5183.17933749,0.0002298,2]
[311655607,1705287038009,-56346.84813276,0.0002298,2]
[311655612,1705287038053,-4447.81020263,0.0002298,2]
[311655834,1705287040198,-1267.80842534,0.0002298,2]
[311655836,1705287040210,-637.26935831,0.0002298,2]
[311655838,1705287040220,-272.460005,0.0002298,2]
[311655844,1705287040264,-1612.85905211,0.0002298,2]
[311655846,1705287040273,-152.893865,0.0002298,7]
[311655848,1705287040282,-155.827589,0.0002298,7]
[311655850,1705287040291,-160.354792,0.0002298,7]
[311655852,1705287040301,-151.0,0.0002298,7]
[311655854,1705287040311,-151.0,0.0002298,7]
[311655883,1705287040570,-151.0,0.0002298,7]
[311655886,1705287040579,-151.0,0.0002298,7]
[311655888,1705287040588,-154.387848,0.0002298,7]
[311655890,1705287040598,-375.437614,0.0002298,7]
[311655891,1705287040607,-375.437614,0.0002298,7]
[311655894,1705287040617,-285.747833,0.0002298,7]
[311655896,1705287040626,-151.0,0.0002298,7]
[311655898,1705287040635,-151.0,0.0002298,7]
[311655899,1705287040644,-151.0,0.0002298,7]
[311655902,1705287040654,-177.582816,0.0002298,7]
[311655904,1705287040662,-1128.995473,0.0002298,7]
[311655906,1705287040672,-1128.995473,0.0002298,7]
[311655908,1705287040681,-155.185961,0.0002298,7]
[311655910,1705287040690,-156.788401,0.0002298,7]
[311655912,1705287040699,-162.48234,0.0002298,7]
[311655914,1705287040708,-157.10985964,0.0002299,2]
[311655915,1705287040717,-1262.77598376,0.00022993,2]
[311655918,1705287040729,-998.486475,0.00022993,2]
[311656189,1705287043257,-329.20598794,0.00022993,2]
[311656192,1705287043268,-1418.07692961,0.00022993,2]
[311656194,1705287043277,-103.48982843,0.00022998,2]
[311656205,1705287043369,-2290.48200558,0.00022998,2]
[311656207,1705287043381,-2343.59286115,0.00022998,2]
[311656209,1705287043390,-151.0,0.00022999,7]
[311656211,1705287043399,-151.0,0.00022999,7]
[311656213,1705287043408,-151.0,0.00022999,7]
[311656215,1705287043417,-151.0,0.00022999,7]
[311656217,1705287043426,-375.437614,0.00022999,7]
[311656219,1705287043435,-30.77164533,0.00022999,7]
[311656223,1705287043457,-344.66596867,0.00022999,7]
[311656225,1705287043467,-151.0,0.00022999,7]
[311656227,1705287043478,-155.3464661,0.00022999,7]
[311656230,1705287043497,-0.2780589,0.00022999,7]
[311656232,1705287043507,-151.0,0.00022999,7]
[311656234,1705287043516,-155.411047,0.00022999,7]
[311656236,1705287043525,-151.0,0.00022999,7]
[311656238,1705287043535,-282.103001,0.00022999,7]
[311656240,1705287043544,-155.133244,0.00022999,7]
[311656242,1705287043553,-151.0,0.00022999,7]
[311656244,1705287043562,-151.0,0.00022999,7]
[311656246,1705287043571,-151.0,0.00022999,7]
[311656248,1705287043580,-151.0,0.00022999,7]
[311656250,1705287043589,-152.586233,0.00022999,7]